fUSD/lending_fUSD_20260417
["ID","MTS","AMOUNT","RATE_DAILY","PERIOD"]
[420653111,1776432361634,8.01,7.57e-05,2]
[420653112,1776432361658,141.99,7.57e-05,2]
[420653113,1776432361712,150.0,7.585e-05,2]
[420653114,1776432361797,150.0,7.614e-05,2]
[420653115,1776432361871,150.0,7.628e-05,2]
[420653116,1776432361949,150.0,7.642e-05,2]
[420653117,1776432362013,150.0,7.657e-05,2]
[420653118,1776432362082,150.0,7.671e-05,2]
[420653119,1776432362154,150.0,7.686e-05,2]
[420653120,1776432362239,150.0,7.7e-05,2]
[420653121,1776432362290,150.0,7.714e-05,2]
[420653122,1776432362364,150.0,7.729e-05,2]
[420653123,1776432362391,-6.59552676,7.867e-05,2]
[420653124,1776432362414,-150.0,7.869e-05,2]
[420653125,1776432362437,-23.93213688,7.875e-05,2]
[420653126,1776432362460,-119.47233636,7.877e-05,2]
[420653127,1776432362501,150.0,7.743e-05,2]
[420653128,1776432362537,150.0,7.758e-05,2]
[420653129,1776432362572,150.0,7.772e-05,2]
[420653130,1776432364732,150.0,7.787e-05,2]
[420653131,1776432364770,150.0,7.801e-05,2]
[420653132,1776432364805,150.0,7.815e-05,2]
[420653133,1776432364837,150.0,7.83e-05,2]
[420653134,1776432364870,150.0,7.599e-05,2]
[420653135,1776432364902,150.0,7.844e-05,2]
[420653136,1776432365321,150.0,7.397e-05,2]
[420653137,1776432365360,150.0,7.43e-05,2]
[420653138,1776432365391,150.0,7.463e-05,2]
[420653139,1776432365432,150.0,7.496e-05,2]
[420653140,1776432365506,150.0,7.529e-05,2]
[420653141,1776432365555,150.0,7.562e-05,2]
[420653142,1776432366224,150.0,7.595e-05,2]
[420653143,1776432366257,150.0,7.627e-05,2]
[420653144,1776432366321,150.0,7.66e-05,2]
[420653145,1776432366373,150.0,7.693e-05,2]
[420653146,1776432366411,150.0,7.726e-05,2]
[420653147,1776432366464,150.0,7.759e-05,2]
[420653148,1776432366495,150.0,7.792e-05,2]
[420653149,1776432366525,150.0,7.825e-05,2]
[420653150,1776432366853,201.29039859,7.397e-05,2]
[420653151,1776432366892,150.0,7.397e-05,2]
[420653152,1776432366924,150.0,7.562e-05,2]
[420653153,1776432366960,150.0,7.726e-05,2]
[420653154,1776432401738,305.65,0.000165,120]
[420653155,1776432414514,1600.0,6.988e-05,2]
[420653156,1776432439203,-150.0,7.858e-05,2]
[420653157,1776432439227,-253.0,7.858e-05,2]
[420653158,1776432439253,-150.0,7.859e-05,2]
[420653159,1776432439276,-1600.0,7.862e-05,2]
[420653160,1776432439300,-150.0,7.873e-05,2]
[420653161,1776432439323,-30.52766364,7.877e-05,2]
[420653162,1776432439350,-285.50676789,7.877e-05,2]
[420653163,1776432439373,-150.0,7.878e-05,2]
[420653164,1776432439396,-150.0,7.887e-05,2]
[420653165,1776432439418,-54.1226129,7.887e-05,2]
[420653166,1776432441615,2300.0,7.6e-05,2]
[420653167,1776432443728,4700.0,7.7e-05,2]
[420653168,1776432445832,1400.01,7.8e-05,2]
[420653169,1776432445856,5699.99,7.8e-05,2]
[420653170,1776432451100,-95.8773871,7.887e-05,2]
[420653171,1776432451120,-150.0,7.888e-05,2]
[420653172,1776432451142,-21.98611798,7.888e-05,2]
[420653174,1776432499046,266.08064622,7.149e-05,2]
[420653175,1776432499500,266.08064622,7.423e-05,2]
[420653176,1776432500091,221.73387185,7.752e-05,2]
[420653177,1776432500989,283.04032311,6.93e-05,2]
[420653180,1776432517455,-128.01388202,7.888e-05,2]
[420653181,1776432517486,-869.0,7.888e-05,3]
[420653182,1776432517517,-150.0,7.888e-05,2]
[420653183,1776432517546,-150.0,7.89e-05,2]
[420653184,1776432517576,-150.0,7.89e-05,2]
[420653185,1776432517607,-150.0,7.89e-05,2]
[420653186,1776432517637,-150.0,7.894e-05,2]
[420653187,1776432517667,-150.0,7.899e-05,2]
[420653188,1776432517698,-300.0,7.899e-05,2]
[420653189,1776432517910,-840.84,7.9e-05,2]
[420653190,1776432523486,-343.18733138,7.9e-05,2]
[420653191,1776432523524,-5000.01,7.9e-05,2]
[420653192,1776432526388,-843.20733138,7.9e-05,2]
[420653193,1776432526413,-3313.59533724,7.9e-05,2]
[420653197,1776432527055,-150.0,7.901e-05,2]
[420653198,1776432527084,-150.0,7.902e-05,2]
[420653199,1776432527118,-392.0,7.904e-05,2]
[420653200,1776432527155,-150.0,7.904e-05,2]
[420653201,1776432527196,-150.0,7.904e-05,2]
[420653202,1776432527375,-3016.01,7.908e-05,2]
[420653203,1776432529600,-256.929831,7.908e-05,2]
[420653204,1776432529631,-150.0,7.91e-05,2]
[420653205,1776432529664,-150.0,7.911e-05,2]
[420653206,1776432529698,-150.0,7.914e-05,2]
[420653207,1776432529731,-150.0,7.916e-05,2]
[420653208,1776432529761,-150.0,7.92e-05,2]
[420653209,1776432529795,-300.0,7.92e-05,2]
[420653210,1776432529826,-150.0,7.92e-05,2]
[420653211,1776432529858,-601.019097,7.921e-05,2]
[420653212,1776432529890,-150.0,7.922e-05,2]
[420653213,1776432529923,-150.0,7.922e-05,2]
[420653214,1776432529954,-134.112144,7.923e-05,2]
[420653215,1776432530099,-15.887856,7.923e-05,2]
[420653216,1776432530134,-150.0,7.926e-05,2]
[420653217,1776432530165,-150.0,7.928e-05,2]
[420653218,1776432530378,-15.887856,7.928e-05,2]
[420653219,1776432530405,-4368.234288,7.928e-05,2]
[420653223,1776432534904,-800.342643,7.928e-05,2]
[420653224,1776432534933,-354.32194628,7.928e-05,2]
[420653225,1776432534962,-150.0,7.928e-05,2]
[420653226,1776432534990,-150.0,7.931e-05,2]
[420653227,1776432535020,-150.0,7.931e-05,2]
[420653228,1776432535117,-1930.451702,7.935e-05,2]
[420653229,1776432535149,-150.0,7.939e-05,2]
[420653230,1776432535178,-150.0,7.939e-05,2]
[420653231,1776432535207,-150.0,7.941e-05,2]
[420653232,1776432535237,-89.106596,7.942e-05,2]
[420653233,1776432535644,-60.893404,7.942e-05,2]
[420653234,1776432535654,-150.0,7.945e-05,2]
[420653235,1776432535663,-150.0,7.945e-05,2]
[420653236,1776432535673,-150.0,7.945e-05,2]
[420653237,1776432535682,-150.0,7.945e-05,2]
[420653238,1776432535692,-150.0,7.952e-05,2]
[420653239,1776432535703,-150.0,7.954e-05,2]
[420653240,1776432535712,-150.0,7.956e-05,2]
[420653241,1776432535722,-140.68082144,7.957e-05,2]
[420653242,1776432535748,-9.31917856,7.957e-05,2]
[420653243,1776432535758,-140.68082144,7.957e-05,2]
[420653244,1776432535777,-9.31917856,7.957e-05,2]
[420653245,1776432535787,-140.68082144,7.96e-05,2]
[420653246,1776432535801,-9.31917856,7.96e-05,2]
[420653247,1776432535811,-140.68082144,7.962e-05,2]
[420653248,1776432535831,-9.31917856,7.962e-05,2]
[420653249,1776432535841,-140.68082144,7.963e-05,2]
[420653250,1776432535896,-9.31917856,7.963e-05,2]
[420653251,1776432535926,-150.0,7.967e-05,2]
[420653252,1776432535955,-150.0,7.974e-05,2]
[420653253,1776432535986,-150.0,7.974e-05,2]
[420653254,1776432536018,-150.0,7.974e-05,2]
[420653255,1776432536047,-150.0,7.974e-05,2]
[420653256,1776432536076,-150.0,7.979e-05,2]
[420653257,1776432536616,-150.0,7.981e-05,2]
[420653258,1776432536647,-150.0,7.984e-05,2]
[420653259,1776432536677,-150.0,7.984e-05,2]
[420653260,1776432536715,-150.0,7.988e-05,2]
[420653261,1776432536746,-150.0,7.989e-05,2]
[420653262,1776432536779,-150.0,7.992e-05,2]
[420653263,1776432536810,-150.0,7.992e-05,2]
[420653264,1776432536843,-150.0,7.994e-05,2]
[420653265,1776432536874,-150.0,7.995e-05,2]
[420653266,1776432536906,-150.0,7.997e-05,2]
[420653267,1776432536936,-31.37164288,8e-05,2]
[420653268,1776432536979,-118.62835712,8e-05,2]
[420653269,1776432537394,-118.62835712,8e-05,2]
[420653270,1776432537414,-4762.75328576,8e-05,2]
[420653271,1776432538592,-5000.01,8e-05,2]
[420653272,1776432538803,-2018.60835712,8e-05,2]
[420653273,1776432538837,-150.0,8.003e-05,2]
[420653274,1776432538871,-150.0,8.006e-05,2]
[420653275,1776432538903,-150.0,8.007e-05,2]
[420653276,1776432539016,-150.0,8.009e-05,2]
[420653277,1776432539048,-150.0,8.009e-05,2]
[420653278,1776432539078,-150.0,8.014e-05,2]
[420653279,1776432539110,-150.0,8.016e-05,2]
[420653280,1776432539142,-150.0,8.017e-05,2]
[420653281,1776432539173,-150.0,8.02e-05,2]
[420653282,1776432539204,-150.0,8.022e-05,2]
[420653283,1776432539235,-150.0,8.027e-05,2]
[420653284,1776432539270,-150.0,8.027e-05,2]
[420653285,1776432539304,-150.0,8.027e-05,2]
[420653286,1776432539338,-150.0,8.031e-05,2]
[420653287,1776432539370,-150.0,8.032e-05,2]
[420653288,1776432539401,-150.0,8.034e-05,2]
[420653289,1776432539433,-150.0,8.038e-05,2]
[420653290,1776432539465,-150.0,8.043e-05,2]
[420653291,1776432539498,-150.0,8.044e-05,2]
[420653292,1776432539530,-50.01,8.044e-05,2]
[420653293,1776432540102,-12.78328576,8.044e-05,2]
[420653294,1776432540117,-87.20671424,8.044e-05,2]
[420653295,1776432540127,-62.79328576,8.046e-05,2]
[420653296,1776432541529,-87.20671424,8.046e-05,2]
[420653297,1776432541559,-150.0,8.047e-05,2]
[420653298,1776432541598,-150.0,8.048e-05,2]
[420653299,1776432541633,-150.0,8.048e-05,2]
[420653300,1776432541670,-150.0,8.055e-05,2]
[420653301,1776432541703,-150.0,8.055e-05,2]
[420653302,1776432541734,-150.0,8.055e-05,2]
[420653303,1776432541765,-150.0,8.059e-05,2]
[420653304,1776432541796,-150.0,8.06e-05,2]
[420653305,1776432541827,-150.0,8.061e-05,2]
[420653306,1776432541857,-150.0,8.062e-05,2]
[420653307,1776432541889,-150.0,8.062e-05,2]
[420653308,1776432541924,-150.0,8.065e-05,2]
[420653309,1776432541956,-150.0,8.07e-05,2]
[420653310,1776432541989,-150.0,8.073e-05,2]
[420653311,1776432542021,-150.0,8.075e-05,2]
[420653312,1776432542051,-150.0,8.079e-05,2]
[420653313,1776432542176,-150.0,8.079e-05,2]
[420653314,1776432542208,-150.0,8.08e-05,2]
[420653315,1776432542241,-150.0,8.082e-05,2]
[420653316,1776432542272,-150.0,8.082e-05,2]
[420653317,1776432542303,-150.0,8.087e-05,2]
[420653318,1776432542334,-150.0,8.088e-05,2]
[420653319,1776432542366,-150.0,8.089e-05,2]
[420653320,1776432542400,-150.0,8.091e-05,2]
[420653321,1776432542432,-150.0,8.097e-05,2]
[420653322,1776432542465,-150.0,8.097e-05,2]
[420653323,1776432543113,-150.0,8.099e-05,2]
[420653324,1776432543146,-150.0,8.1e-05,2]
[420653325,1776432543179,-150.0,8.102e-05,2]
[420653326,1776432543208,-150.0,8.102e-05,2]
[420653327,1776432543238,-150.0,8.104e-05,2]
[420653328,1776432543267,-150.0,8.11e-05,2]
[420653329,1776432543297,-50.01,8.112e-05,2]
[420653330,1776432543418,-99.99,8.112e-05,2]
[420653331,1776432543448,-150.0,8.113e-05,2]
[420653332,1776432543478,-150.0,8.114e-05,2]
[420653333,1776432543507,-150.0,8.114e-05,2]
[420653334,1776432543538,-150.0,8.116e-05,2]
[420653335,1776432543568,-150.0,8.118e-05,2]
[420653336,1776432543599,-150.0,8.121e-05,2]
[420653337,1776432543628,-150.0,8.123e-05,2]
[420653338,1776432543658,-1243.6268,8.126e-05,2]
[420653339,1776432544570,-212.7764,8.126e-05,2]
[420653340,1776432544581,-150.0,8.126e-05,2]
[420653341,1776432544734,-150.0,8.132e-05,2]
[420653342,1776432544766,-150.0,8.132e-05,2]
[420653343,1776432544799,-150.0,8.133e-05,2]
[420653344,1776432544832,-150.0,8.134e-05,2]
[420653345,1776432544866,-150.0,8.134e-05,2]
[420653346,1776432544900,-150.0,8.14e-05,2]
[420653347,1776432544934,-150.0,8.144e-05,2]
[420653348,1776432544966,-150.0,8.147e-05,2]
[420653349,1776432544998,-150.0,8.149e-05,2]
[420653350,1776432545030,-150.0,8.149e-05,2]
[420653351,1776432545063,-150.0,8.151e-05,2]
[420653352,1776432545096,-150.0,8.153e-05,2]
[420653353,1776432545128,-150.0,8.153e-05,2]
[420653354,1776432545162,-150.0,8.155e-05,2]
[420653355,1776432545192,-150.0,8.16e-05,2]
[420653356,1776432545223,-150.0,8.161e-05,2]
[420653357,1776432545256,-50.01,8.164e-05,2]
[420653358,1776432547403,-99.99,8.164e-05,2]
[420653359,1776432547433,-150.0,8.166e-05,2]
[420653360,1776432547463,-150.0,8.166e-05,2]
[420653361,1776432547491,-150.0,8.167e-05,2]
[420653362,1776432547522,-150.0,8.167e-05,2]
[420653363,1776432547551,-150.0,8.168e-05,2]
[420653364,1776432547582,-150.0,8.176e-05,2]
[420653365,1776432547614,-150.0,8.176e-05,2]
[420653366,1776432547644,-150.0,8.179e-05,2]
[420653367,1776432547677,-150.0,8.184e-05,2]
[420653368,1776432547707,-150.0,8.184e-05,2]
[420653369,1776432547738,-150.0,8.185e-05,2]
[420653370,1776432547767,-150.0,8.186e-05,2]
[420653371,1776432547798,-150.0,8.187e-05,2]
[420653372,1776432547832,-150.0,8.19e-05,2]
[420653373,1776432547864,-150.0,8.193e-05,2]
[420653374,1776432547895,-150.0,8.198e-05,2]
[420653375,1776432548017,-150.0,8.202e-05,2]
[420653376,1776432548049,-150.0,8.202e-05,2]
[420653377,1776432548079,-150.0,8.202e-05,2]
[420653378,1776432548113,-410.8316242,8.203e-05,2]
[420653379,1776432548612,-500.0,8.203e-05,2]
[420653380,1776432548665,-500.0,8.203e-05,2]
[420653381,1776432548700,-150.0,8.205e-05,2]
[420653382,1776432548731,-150.0,8.206e-05,2]
[420653383,1776432548763,-150.0,8.209e-05,2]
[420653384,1776432549961,-150.0,8.023e-05,2]
[420653385,1776432549982,-378.3467516,8.023e-05,2]
[420653386,1776432550017,-5000.01,8.023e-05,2]
[420653387,1776432550574,-5000.01,8.023e-05,2]
[420653388,1776432550693,-5000.01,8.023e-05,2]
[420653389,1776432550839,-1168.5307766,8.023e-05,2]
[420653390,1776432550868,-2662.9484468,8.023e-05,2]
[420653391,1776432551117,-2410.30096659,8.217e-05,2]
[420653392,1776432551146,-15533.34411624,8.217e-05,2]
[420653393,1776432553752,-5000.01,8.217e-05,2]
[420653394,1776432554002,-5000.01,8.217e-05,2]
[420653395,1776432554113,-5000.01,8.217e-05,2]
[420653396,1776432555486,300.0,8.192e-05,2]
[420653397,1776432556662,-5000.01,8.217e-05,2]
[420653398,1776432556769,-433.76051567,8.217e-05,2]
[420653399,1776432556800,-658.73,8.219e-05,2]
[420653400,1776432556831,-252.83565639,8.219e-05,2]
[420653401,1776432556864,-150.0,8.219e-05,2]
[420653402,1776432556896,-150.13251298,8.219e-05,2]
[420653403,1776432556929,-150.0,8.219e-05,2]
[420653404,1776432556961,-150.0,8.219e-05,2]
[420653405,1776432556996,-159.43111905,8.219e-05,2]
[420653406,1776432557026,-150.0,8.219e-05,2]
[420653407,1776432557058,-150.0,8.219e-05,2]
[420653408,1776432557089,-40.23039182,8.219e-05,2]
[420653409,1776432557276,-109.76960818,8.219e-05,2]
[420653410,1776432564000,194.39,8.2e-05,2]
[420653411,1776432566077,-150.0,8.219e-05,2]
[420653412,1776432566104,-150.00000001,8.219e-05,2]
[420653413,1776432566128,-150.0,8.219e-05,2]
[420653414,1776432566149,-150.0,8.219e-05,2]
[420653415,1776432566172,-150.0,8.219e-05,2]
[420653416,1776432566192,-110.50567959,8.219e-05,2]
[420653417,1776432592962,186.61,8.2e-05,2]
[420653418,1776432593310,233.27,8.2e-05,2]
[420653419,1776432593681,279.92,8.2e-05,2]
[420653420,1776432596035,326.58,8.2e-05,2]
[420653421,1776432608715,195.95,8.2e-05,2]
[420653422,1776432612539,868.0,8.2e-05,3]
[420653444,1776432631786,-250.0,8.21e-05,2]
[420653446,1776432631796,-141.5364868,8.218e-05,2]
[420653452,1776432631846,-170.63030183,8.218e-05,2]
[420653455,1776432631856,-151.0,8.223e-05,2]
[420653457,1776432631866,-300.0,8.224e-05,2]
[420653459,1776432631875,-685.35000117,8.224e-05,2]
[420653461,1776432631887,-514.64999883,8.224e-05,2]
[420653463,1776432631896,-300.0,8.224e-05,2]
[420653464,1776432631907,-2682.73774522,8.225e-05,2]
[420653465,1776432631916,-847.89515257,8.225e-05,2]
[420653466,1776432631925,-150.0,8.225e-05,2]
[420653467,1776432631934,-4494.32349249,8.225e-05,2]
[420653468,1776432631944,-250.0,8.226e-05,2]
[420653469,1776432631953,-76723.60195345,8.226e-05,2]
[420653470,1776432631965,-864.17145461,8.226e-05,2]
[420653471,1776432631977,-7025.63643638,8.226e-05,2]
[420653472,1776432631989,-3579.0381034,8.226e-05,2]
[420653473,1776432632004,-2426.59455712,8.226e-05,2]
[420653474,1776432632016,-1185.56393029,8.226e-05,2]
[420653475,1776432632027,-503.10403782,8.226e-05,2]
[420653476,1776432632046,-97492.24558737,8.226e-05,2]
[420653477,1776432632161,-5193.63543646,8.226e-05,2]
[420653483,1776432634312,7909.68,8.192e-05,2]
[420653484,1776432634333,400.32,8.192e-05,2]
[420653512,1776432638123,-51605.56338062,8.226e-05,2]
[420653513,1776432638135,-42741.22620484,8.226e-05,2]
[420653514,1776432638284,-842.77482899,8.226e-05,2]
[420653515,1776432638667,-40989.03429514,8.226e-05,2]
[420653516,1776432638678,-1852001.0740811,8.226e-05,2]
[420653517,1776432638705,-4505.4099798,8.226e-05,2]
[420653518,1776432638717,-6307.27883568,8.226e-05,2]
[420653519,1776432638729,-516.0119227,8.226e-05,2]
[420653520,1776432638741,-2355.82011326,8.226e-05,2]
[420653521,1776432638753,-2273.013346,8.226e-05,2]
[420653523,1776432638765,-2438.15312271,8.226e-05,2]
[420653527,1776432638788,-1132.68254729,8.226e-05,2]
[420653544,1776432640213,-284184.25804238,8.226e-05,2]
[420653545,1776432640312,-6561.22632194,8.226e-05,2]
[420653558,1776432641366,-7865.34557863,8.226e-05,2]
[420653609,1776432646688,-620.73610559,8.226e-05,2]
[420653610,1776432646700,-537.0,8.226e-05,2]
[420653612,1776432646719,-1239.5586862,8.226e-05,2]
[420653613,1776432646730,-8386.46823606,8.226e-05,2]
[420653615,1776432646741,-674.48731155,8.226e-05,2]
[420653618,1776432646876,-1725068.09727203,8.226e-05,2]
[420653619,1776432646886,-1758.1112595,8.226e-05,2]
[420653620,1776432646896,-15096.18717234,8.226e-05,2]
[420653621,1776432646908,-200.0,8.226e-05,2]
[420653622,1776432646918,-342.253411,8.226e-05,2]
[420653623,1776432646928,-400.0,8.228e-05,7]
[420653624,1776432646938,-182.48,8.241e-05,7]
[420653625,1776432646948,-150.0,8.316e-05,2]
[420653626,1776432646958,-150.0,8.486e-05,2]
[420653627,1776432646968,-150.0,8.489e-05,2]
[420653628,1776432646978,-204.18692323,8.489e-05,2]
[420653629,1776432646987,-150.0,8.489e-05,2]
[420653630,1776432646999,-658.73,8.493e-05,2]
[420653631,1776432647008,-150.0,8.583e-05,2]
[420653632,1776432647017,-5000.0,8.643e-05,2]
[420653633,1776432647027,-2214.5213117,8.643e-05,2]
[420653634,1776432647036,-237.43388326,8.654e-05,2]
[420653635,1776432647047,-500.0,8.719e-05,2]
[420653636,1776432647056,-1600.0,8.735e-05,2]
[420653637,1776432647067,-500.0,8.763e-05,2]
[420653638,1776432647076,-7997.5613561,8.763e-05,2]
[420653639,1776432647087,-500.0,8.763e-05,2]
[420653640,1776432647096,-500.0,8.763e-05,2]
[420653641,1776432647105,-500.0,8.763e-05,2]
[420653642,1776432647115,-500.0,8.763e-05,2]
[420653643,1776432647124,-500.0,8.763e-05,2]
[420653644,1776432647133,-500.0,8.763e-05,2]
[420653645,1776432647143,-500.0,8.763e-05,2]
[420653646,1776432647153,-187.78006525,8.763e-05,2]
[420653647,1776432647162,-500.0,8.763e-05,2]
[420653648,1776432647171,-500.0,8.763e-05,2]
[420653649,1776432647180,-201.94706963,8.763e-05,2]
[420653650,1776432647191,-500.0,8.763e-05,2]
[420653651,1776432647201,-174.61919141,8.763e-05,2]
[420653652,1776432647210,-500.0,8.763e-05,2]
[420653653,1776432647220,-500.0,8.763e-05,2]
[420653654,1776432647229,-500.0,8.763e-05,2]
[420653655,1776432647239,-151.0,8.763e-05,2]
[420653656,1776432647249,-500.0,8.763e-05,2]
[420653657,1776432647259,-743.50770149,8.763e-05,2]
[420653658,1776432647268,-621.78829552,8.763e-05,2]
[420653659,1776432647278,-211.40802048,8.763e-05,2]
[420653660,1776432647288,-219.23011724,8.763e-05,2]
[420653661,1776432647298,-227.34163157,8.763e-05,2]
[420653662,1776432647309,-197.54989064,8.763e-05,2]
[420653663,1776432647319,-279.9045709,8.763e-05,2]
[420653664,1776432647329,-187.78006525,8.763e-05,2]
[420653665,1776432647340,-658.73,8.767e-05,2]
[420653666,1776432647351,-500.0,8.818e-05,2]
[420653667,1776432647362,-151.0,8.818e-05,2]
[420653668,1776432647372,-617.63841358,8.865e-05,2]
[420653669,1776432647381,-151.0,8.873e-05,2]
[420653670,1776432647391,-150.0,8.882e-05,2]
[420653671,1776432647401,-150.0,8.883e-05,2]
[420653672,1776432647411,-868.0,8.926e-05,3]
[420653673,1776432647420,-151.0,8.928e-05,2]
[420653674,1776432647430,-151.0,8.983e-05,2]
[420653675,1776432647441,-250.0,9.02e-05,2]
[420653676,1776432647451,-151.0,9.038e-05,2]
[420653677,1776432647461,-658.73,9.041e-05,2]
[420653678,1776432647471,-1680.0,9.046e-05,2]
[420653679,1776432647481,-255.0,9.048e-05,2]
[420653680,1776432647494,-151.0,9.093e-05,2]
[420653681,1776432647506,-11141.02,9.123e-05,2]
[420653682,1776432647516,-151.0,9.148e-05,2]
[420653683,1776432647526,-150.0,9.183e-05,2]
[420653684,1776432647536,-151.0,9.203e-05,2]
[420653685,1776432647545,-3929.05,9.219e-05,2]
[420653686,1776432647555,-261.07,9.249e-05,2]
[420653687,1776432647564,-151.0,9.258e-05,2]
[420653688,1776432647575,-3692.58,9.284e-05,2]
[420653689,1776432647584,-194.72792766,9.311e-05,2]
[420653690,1776432647595,-181.08010149,9.311e-05,2]
[420653691,1776432647605,-771.01748645,9.311e-05,2]
[420653692,1776432647615,-375.86142929,9.311e-05,2]
[420653693,1776432647625,-239.37405519,9.311e-05,2]
[420653694,1776432647635,-151.0,9.313e-05,2]
[420653695,1776432647644,-658.73,9.315e-05,2]
[420653696,1776432647654,-20157.57,9.365e-05,2]
[420653697,1776432647665,-537.91,9.371e-05,2]
[420653698,1776432647674,-525.47922249,9.377e-05,2]
[420653699,1776432647684,-500.0,9.378e-05,2]
[420653700,1776432647694,-160.0,9.414e-05,2]
[420653701,1776432647703,-150.0,9.483e-05,2]
[420653702,1776432647713,-200.0,9.485e-05,2]
[420653703,1776432647723,-910.46791378,9.537e-05,2]
[420653704,1776432647732,-622.0,9.565e-05,2]
[420653705,1776432647743,-1047.0,9.565e-05,2]
[420653706,1776432647752,-1348.0,9.568e-05,2]
[420653707,1776432647762,-500.0,9.569e-05,2]
[420653708,1776432647772,-658.73,9.589e-05,2]
[420653709,1776432647782,-1600.0,9.609e-05,2]
[420653710,1776432647792,-250.87230447,9.652e-05,2]
[420653711,1776432647801,-868.0,9.653e-05,3]
[420653712,1776432647812,-926.0,9.669e-05,2]
[420653713,1776432647822,-1219.0,9.669e-05,2]
[420653714,1776432647832,-7485.47852119,9.684e-05,2]
[420653715,1776432647842,-5000.0,9.684e-05,2]
[420653716,1776432647851,-5000.0,9.684e-05,2]
[420653717,1776432647861,-5000.0,9.684e-05,2]
[420653718,1776432647871,-5000.0,9.684e-05,2]
[420653719,1776432647880,-642.84277549,9.735e-05,2]
[420653720,1776432647890,-2426.93,9.792e-05,2]
[420653721,1776432647900,-2898.0,9.83e-05,5]
[420653722,1776432647910,-150.0,9.85e-05,2]
[420653723,1776432647920,-198.1841096,9.859e-05,2]
[420653724,1776432647930,-187.78006525,9.859e-05,2]
[420653725,1776432647940,-799.54513345,9.859e-05,2]
[420653726,1776432647950,-658.73,9.863e-05,2]
[420653727,1776432647959,-169.36856728,9.876e-05,2]
[420653728,1776432647970,-500.0,9.876e-05,2]
[420653729,1776432647980,-500.0,9.876e-05,2]
[420653730,1776432647993,-500.0,9.876e-05,2]
[420653731,1776432648003,-235.09573158,9.876e-05,2]
[420653732,1776432648012,-2132.753,9.9e-05,2]
[420653733,1776432648022,-185.67,9.9e-05,2]
[420653734,1776432648031,-2351.0,9.951e-05,2]
[420653735,1776432648041,-433.0,9.952e-05,2]
[420653736,1776432648050,-8563.1655824,9.973e-05,2]
[420653737,1776432648059,-427.25789498,0.0001,2]
[420653738,1776432648069,-851.85585862,0.0001,2]
[420653739,1776432648079,-940.73564486,0.0001,2]
[420653740,1776432648088,-985.19089852,0.0001,2]
[420653741,1776432648098,-576.36167982,0.0001,2]
[420653742,1776432648107,-151.0,0.0001,2]
[420653743,1776432648117,-500.0,0.0001,2]
[420653744,1776432648127,-500.0,0.0001,2]
[420653745,1776432648137,-500.0,0.0001,2]
[420653746,1776432648146,-200.0,0.0001,2]
[420653747,1776432648156,-395.24826756,0.0001,2]
[420653748,1776432648166,-151.0,0.0001,2]
[420653749,1776432648175,-151.0,0.0001,2]
[420653750,1776432648186,-151.0,0.0001,2]
[420653751,1776432648195,-151.0,0.0001,2]
[420653752,1776432648204,-151.0,0.0001,2]
[420653753,1776432648214,-151.0,0.0001,2]
[420653754,1776432648223,-151.0,0.0001,2]
[420653755,1776432648233,-151.0,0.0001,2]
[420653756,1776432648244,-151.0,0.0001,2]
[420653757,1776432648254,-151.0,0.0001,2]
[420653758,1776432648263,-151.0,0.0001,2]
[420653759,1776432648273,-151.0,0.0001,2]
[420653760,1776432648283,-151.0,0.0001,2]
[420653761,1776432648295,-151.0,0.0001,2]
[420653762,1776432648310,-151.0,0.0001,2]
[420653763,1776432648330,-151.0,0.0001,2]
[420653764,1776432648341,-151.0,0.0001,2]
[420653765,1776432648350,-286.71323757,0.0001,2]
[420653766,1776432648360,-151.0,0.0001,2]
[420653767,1776432648369,-151.0,0.0001,2]
[420653768,1776432648379,-151.0,0.0001,2]
[420653769,1776432648389,-153.0792393,0.0001,2]
[420653770,1776432648398,-755.54741345,0.0001,2]